[Event "*** Titled Tuesday Blitz"]
[Site "Chess.com"]
[Date "2020.10.27"]
[Round "11"]
[White "maciek_92"]
[Black "juancruzarias"]
[Result "1-0"]
[WhiteElo "2721"]
[BlackElo "2538"]
[TimeControl "180+1"]
[EndTime "12:05:39 PDT"]
[Termination "maciek_92 won by checkmate"]

1. e4 {[%clk 0:03:00.9]} 1... e6 {[%clk 0:02:57.6]} 2. d4 {[%clk 0:02:59.6]}
2... d5 {[%clk 0:02:58.2]} 3. Nd2 {[%clk 0:03:00.2]} 3... Be7 {[%clk 0:02:58.2]}
4. Ngf3 {[%clk 0:02:59.6]} 4... Nf6 {[%clk 0:02:58.8]} 5. exd5 {[%clk
0:02:52.3]} 5... Qxd5 {[%clk 0:02:57.7]} 6. Bc4 {[%clk 0:02:49.6]} 6... Qh5
{[%clk 0:02:56.7]} 7. Qe2 {[%clk 0:02:46]} 7... c5 {[%clk 0:02:56.4]} 8. dxc5
{[%clk 0:02:45.5]} 8... Qxc5 {[%clk 0:02:55.8]} 9. Nb3 {[%clk 0:02:45.4]} 9...
Qc7 {[%clk 0:02:52.9]} 10. Bg5 {[%clk 0:02:45.2]} 10... Nbd7 {[%clk 0:02:36.7]}
11. O-O-O {[%clk 0:02:30]} 11... a6 {[%clk 0:02:36.9]} 12. Nbd4 {[%clk
0:02:28.4]} 12... Nb6 {[%clk 0:02:21.1]} 13. Bb3 {[%clk 0:02:22.8]} 13... O-O
{[%clk 0:02:12.8]} 14. Rhe1 {[%clk 0:02:15.9]} 14... Bd7 {[%clk 0:02:12.6]} 15.
Nf5 {[%clk 0:02:12.9]} 15... Bd8 {[%clk 0:02:08.4]} 16. Nxg7 {[%clk 0:01:30]}
16... Kxg7 {[%clk 0:02:06.7]} 17. Ne5 {[%clk 0:01:30.6]} 17... Ng8 {[%clk
0:01:38.8]} 18. Qg4 {[%clk 0:01:21.8]} 18... Kh8 {[%clk 0:01:36.1]} 19. Rd3
{[%clk 0:01:16.7]} 19... f6 {[%clk 0:01:23.1]} 20. Bf4 {[%clk 0:00:40.8]} 20...
fxe5 {[%clk 0:00:29.3]} 21. Bxe5+ {[%clk 0:00:41.7]} 21... Qxe5 {[%clk
0:00:29.8]} 22. Rxe5 {[%clk 0:00:42.6]} 22... Bf6 {[%clk 0:00:30.3]} 23. Rh5
{[%clk 0:00:41.1]} 23... Rae8 {[%clk 0:00:24.4]} 24. c3 {[%clk 0:00:24]} 24...
Re7 {[%clk 0:00:23.7]} 25. Rdh3 {[%clk 0:00:20.7]} 25... Be8 {[%clk 0:00:21.3]}
26. Rxh7+ {[%clk 0:00:15.1]} 26... Rxh7 {[%clk 0:00:20.8]} 27. Bc2 {[%clk
0:00:08.9]} 27... Nh6 {[%clk 0:00:16]} 28. Qb4 {[%clk 0:00:05.9]} 28... Nd7
{[%clk 0:00:14.7]} 29. Bxh7 {[%clk 0:00:04.8]} 29... Kxh7 {[%clk 0:00:15.6]} 30.
Qf4 {[%clk 0:00:04.9]} 30... Rg8 {[%clk 0:00:14.5]} 31. Qxh6# {[%clk 0:00:05]}
1-0

[Event "*** Titled Tuesday Blitz"]
[Site "Chess.com"]
[Date "2020.10.27"]
[Round "11"]
[White "Meri-Arabidze"]
[Black "Lion-Al-Messi"]
[Result "0-1"]
[WhiteElo "2663"]
[BlackElo "2551"]
[TimeControl "180+1"]
[EndTime "12:05:40 PDT"]
[Termination "Lion-Al-Messi won by resignation"]

1. d4 {[%clk 0:03:00.9]} 1... b6 {[%clk 0:02:59.6]} 2. c4 {[%clk 0:03:01.2]}
2... Bb7 {[%clk 0:03:00.2]} 3. Nc3 {[%clk 0:03:01.4]} 3... e6 {[%clk 0:03:00.2]}
4. a3 {[%clk 0:03:01.4]} 4... Nf6 {[%clk 0:02:59.7]} 5. Nf3 {[%clk 0:03:01]}
5... Be7 {[%clk 0:02:59.6]} 6. g3 {[%clk 0:03:00.6]} 6... O-O {[%clk 0:02:59.7]}
7. Bg2 {[%clk 0:03:00.9]} 7... d6 {[%clk 0:02:57.2]} 8. O-O {[%clk 0:03:01.1]}
8... Nbd7 {[%clk 0:02:57.4]} 9. d5 {[%clk 0:03:00]} 9... a5 {[%clk 0:02:53.8]}
10. dxe6 {[%clk 0:02:57.8]} 10... fxe6 {[%clk 0:02:53.2]} 11. Nd4 {[%clk
0:02:58.1]} 11... Bxg2 {[%clk 0:02:43.7]} 12. Nxe6 {[%clk 0:02:49.8]} 12... Bxf1
{[%clk 0:02:33.6]} 13. Nxd8 {[%clk 0:02:47.7]} 13... Bh3 {[%clk 0:02:30.3]} 14.
Nc6 {[%clk 0:02:41.7]} 14... Rae8 {[%clk 0:02:29.2]} 15. Bg5 {[%clk 0:02:30.2]}
15... Be6 {[%clk 0:02:27.8]} 16. Nxe7+ {[%clk 0:02:23.6]} 16... Rxe7 {[%clk
0:02:27.2]} 17. Nd5 {[%clk 0:02:24.1]} 17... Bxd5 {[%clk 0:02:26]} 18. cxd5
{[%clk 0:02:24.7]} 18... Re5 {[%clk 0:02:25.6]} 19. Bxf6 {[%clk 0:02:19]} 19...
Nxf6 {[%clk 0:02:26.5]} 20. Rc1 {[%clk 0:02:11.2]} 20... Rfe8 {[%clk 0:02:17.3]}
21. e3 {[%clk 0:02:05.5]} 21... Nxd5 {[%clk 0:02:16.4]} 22. Rc2 {[%clk
0:02:02.8]} 22... R8e7 {[%clk 0:02:01.4]} 23. Qd3 {[%clk 0:01:56]} 23... Nf6
{[%clk 0:01:55.8]} 24. Qa6 {[%clk 0:01:50.3]} 24... h6 {[%clk 0:01:39.9]} 25.
Qc8+ {[%clk 0:01:48]} 25... Ne8 {[%clk 0:01:40]} 26. Rc3 {[%clk 0:01:39.6]}
26... Kh7 {[%clk 0:01:38.9]} 27. Kg2 {[%clk 0:01:38]} 27... R5e6 {[%clk
0:01:33.3]} 28. h4 {[%clk 0:01:33.7]} 28... d5 {[%clk 0:01:24.5]} 29. Qa8 {[%clk
0:01:23.6]} 29... Nf6 {[%clk 0:01:20]} 30. Rc6 {[%clk 0:01:10.6]} 30... Re5
{[%clk 0:01:20.3]} 31. Rc2 {[%clk 0:00:58.1]} 31... c5 {[%clk 0:01:18.6]} 32.
Qb8 {[%clk 0:00:48.2]} 32... R5e6 {[%clk 0:01:17.4]} 33. b4 {[%clk 0:00:41.2]}
33... axb4 {[%clk 0:01:15.3]} 34. axb4 {[%clk 0:00:41.8]} 34... c4 {[%clk
0:01:16.2]} 35. Ra2 {[%clk 0:00:33.1]} 35... Ne4 {[%clk 0:01:14]} 36. Ra8 {[%clk
0:00:30.7]} 36... Kg6 {[%clk 0:01:06.5]} 37. g4 {[%clk 0:00:27.9]} 37... c3
{[%clk 0:01:00.7]} 38. f4 {[%clk 0:00:25.5]} 38... Re8 {[%clk 0:00:55.6]} 39.
Qxe8+ {[%clk 0:00:16]} 39... Rxe8 {[%clk 0:00:55]} 40. Rxe8 {[%clk 0:00:16]}
40... c2 {[%clk 0:00:55.2]} 41. Rc8 {[%clk 0:00:14.4]} 41... Nc5 {[%clk
0:00:55.4]} 42. Rc6+ {[%clk 0:00:11.3]} 42... Kh7 {[%clk 0:00:54.7]} 43. bxc5
{[%clk 0:00:11]} 43... c1=Q {[%clk 0:00:54.5]} 44. Rxb6 {[%clk 0:00:11.1]} 44...
Qxe3 {[%clk 0:00:53.3]} 45. Rc6 {[%clk 0:00:08.2]} 45... d4 {[%clk 0:00:52.5]}
46. Rc7 {[%clk 0:00:05.8]} 46... d3 {[%clk 0:00:52.4]} 0-1

[Event "*** Titled Tuesday Blitz"]
[Site "Chess.com"]
[Date "2020.10.27"]
[Round "11"]
[White "ftorodent"]
[Black "GameOverBro"]
[Result "1-0"]
[WhiteElo "2672"]
[BlackElo "2533"]
[TimeControl "180+1"]
[EndTime "12:05:40 PDT"]
[Termination "ftorodent won by resignation"]

1. d4 {[%clk 0:03:00.9]} 1... d6 {[%clk 0:03:00.1]} 2. Nf3 {[%clk 0:03:00.3]}
2... Nf6 {[%clk 0:03:00.7]} 3. c4 {[%clk 0:03:00.3]} 3... Nbd7 {[%clk
0:03:00.5]} 4. Nc3 {[%clk 0:02:58.7]} 4... e5 {[%clk 0:03:00.7]} 5. Bg5 {[%clk
0:02:59.2]} 5... Be7 {[%clk 0:03:00.1]} 6. e3 {[%clk 0:02:59.5]} 6... c6 {[%clk
0:03:00.4]} 7. Qc2 {[%clk 0:02:59.5]} 7... Qc7 {[%clk 0:02:59.8]} 8. Bd3 {[%clk
0:02:59.2]} 8... Nf8 {[%clk 0:02:47.5]} 9. O-O-O {[%clk 0:02:51.7]} 9... Bg4
{[%clk 0:02:40.5]} 10. Bf5 {[%clk 0:02:44]} 10... Bxf5 {[%clk 0:02:37.1]} 11.
Qxf5 {[%clk 0:02:42.9]} 11... g6 {[%clk 0:02:30.1]} 12. Qc2 {[%clk 0:02:38.6]}
12... Ne6 {[%clk 0:02:28.2]} 13. Bxf6 {[%clk 0:02:27.5]} 13... Bxf6 {[%clk
0:02:29.1]} 14. d5 {[%clk 0:02:27.8]} 14... Nc5 {[%clk 0:02:23.7]} 15. Nd2
{[%clk 0:02:18.2]} 15... Be7 {[%clk 0:02:18.1]} 16. g4 {[%clk 0:02:17.9]} 16...
h5 {[%clk 0:02:17.4]} 17. h3 {[%clk 0:02:16.7]} 17... O-O-O {[%clk 0:02:16.6]}
18. Nde4 {[%clk 0:02:16.4]} 18... Nxe4 {[%clk 0:02:13.8]} 19. Nxe4 {[%clk
0:02:16.5]} 19... cxd5 {[%clk 0:02:11.4]} 20. cxd5 {[%clk 0:02:15.2]} 20...
Qxc2+ {[%clk 0:02:05.4]} 21. Kxc2 {[%clk 0:02:15.3]} 21... hxg4 {[%clk
0:02:05.5]} 22. hxg4 {[%clk 0:02:15.2]} 22... f5 {[%clk 0:02:04.2]} 23. gxf5
{[%clk 0:02:14.9]} 23... gxf5 {[%clk 0:02:05.1]} 24. Ng3 {[%clk 0:02:14.7]}
24... Bh4 {[%clk 0:01:50.1]} 25. Nxf5 {[%clk 0:02:10.9]} 25... Bxf2 {[%clk
0:01:49.6]} 26. Nxd6+ {[%clk 0:02:08.2]} 26... Kd7 {[%clk 0:01:47.9]} 27. Nf7
{[%clk 0:01:51.1]} 27... Rc8+ {[%clk 0:01:42.6]} 28. Kd3 {[%clk 0:01:50.7]}
28... e4+ {[%clk 0:01:37.4]} 29. Kxe4 {[%clk 0:01:47.5]} 29... Rhe8+ {[%clk
0:01:07.1]} 30. Ne5+ {[%clk 0:01:47]} 30... Kd8 {[%clk 0:00:56.9]} 31. Rd3
{[%clk 0:01:15.8]} 31... Bg3 {[%clk 0:00:49.3]} 32. Rh5 {[%clk 0:01:15.1]} 32...
Rc2 {[%clk 0:00:48.6]} 33. Rb3 {[%clk 0:01:09.9]} 33... b6 {[%clk 0:00:28.2]}
34. Kd3 {[%clk 0:01:09.7]} 34... Rc5 {[%clk 0:00:20.5]} 35. Nc6+ {[%clk
0:01:05.2]} 35... Kc7 {[%clk 0:00:18.6]} 36. e4 {[%clk 0:01:04.8]} 36... Rf8
{[%clk 0:00:15]} 37. Rh7+ {[%clk 0:00:58.5]} 37... Kd6 {[%clk 0:00:15.2]} 38.
Rh6+ {[%clk 0:00:58.9]} 38... Kc7 {[%clk 0:00:15.5]} 39. Kd4 {[%clk 0:00:51.6]}
39... Bf2+ {[%clk 0:00:14.1]} 40. Ke5 {[%clk 0:00:51.6]} 40... Bg3+ {[%clk
0:00:10.3]} 41. Ke6 {[%clk 0:00:50]} 41... Re8+ {[%clk 0:00:09.2]} 42. Kf5
{[%clk 0:00:46.8]} 42... Rc1 {[%clk 0:00:08.7]} 43. Rxg3 {[%clk 0:00:45.2]}
43... Rf1+ {[%clk 0:00:06.5]} 44. Kg5 {[%clk 0:00:43.3]} 44... Rg8+ {[%clk
0:00:06.7]} 45. Rg6 {[%clk 0:00:43.4]} 45... Rf3 {[%clk 0:00:02.7]} 46. Rxf3
{[%clk 0:00:41.7]} 1-0

[Event "*** Titled Tuesday Blitz"]
[Site "Chess.com"]
[Date "2020.10.27"]
[Round "11"]
[White "northridgehawk"]
[Black "dpopadic"]
[Result "0-1"]
[WhiteElo "2268"]
[BlackElo "2393"]
[TimeControl "180+1"]
[EndTime "12:05:40 PDT"]
[Termination "dpopadic won by resignation"]

1. e4 {[%clk 0:03:00.9]} 1... c5 {[%clk 0:02:59.3]} 2. Nf3 {[%clk 0:02:47.8]}
2... Nc6 {[%clk 0:02:59.3]} 3. d4 {[%clk 0:02:48.7]} 3... cxd4 {[%clk 0:02:59]}
4. Nxd4 {[%clk 0:02:49.6]} 4... Nf6 {[%clk 0:02:59.3]} 5. Nc3 {[%clk 0:02:49.6]}
5... e5 {[%clk 0:02:59.4]} 6. Ndb5 {[%clk 0:02:49.5]} 6... d6 {[%clk 0:02:59.5]}
7. Nd5 {[%clk 0:02:49.5]} 7... Nxd5 {[%clk 0:02:58.8]} 8. exd5 {[%clk
0:02:50.4]} 8... Nb8 {[%clk 0:02:59.2]} 9. c4 {[%clk 0:02:50.9]} 9... Be7 {[%clk
0:02:59.4]} 10. Be2 {[%clk 0:02:50.5]} 10... O-O {[%clk 0:02:59]} 11. O-O {[%clk
0:02:51.1]} 11... f5 {[%clk 0:02:59.1]} 12. f4 {[%clk 0:02:50.3]} 12... a6
{[%clk 0:02:53.8]} 13. Nc3 {[%clk 0:02:49.6]} 13... Nd7 {[%clk 0:02:53.1]} 14.
Be3 {[%clk 0:02:48.8]} 14... Bf6 {[%clk 0:02:45.1]} 15. Qd2 {[%clk 0:02:47.3]}
15... exf4 {[%clk 0:02:44.6]} 16. Rxf4 {[%clk 0:02:36.6]} 16... Ne5 {[%clk
0:02:42.2]} 17. Raf1 {[%clk 0:02:34.5]} 17... b6 {[%clk 0:02:31.4]} 18. b4
{[%clk 0:02:31.8]} 18... Bd7 {[%clk 0:02:27.2]} 19. a3 {[%clk 0:02:20.8]} 19...
Rc8 {[%clk 0:02:25.8]} 20. c5 {[%clk 0:01:56.9]} 20... bxc5 {[%clk 0:02:24.8]}
21. bxc5 {[%clk 0:01:57.1]} 21... dxc5 {[%clk 0:02:20]} 22. Bxa6 {[%clk
0:01:57.1]} 22... Ra8 {[%clk 0:02:13.7]} 23. Bb7 {[%clk 0:01:52.8]} 23... Rxa3
{[%clk 0:02:09.8]} 24. Bxc5 {[%clk 0:01:52.6]} 24... Re8 {[%clk 0:02:03.9]} 25.
Bxa3 {[%clk 0:01:50.6]} 25... Qb6+ {[%clk 0:02:02.2]} 26. Kh1 {[%clk 0:01:43.1]}
26... Qxb7 {[%clk 0:02:02.3]} 27. Rb4 {[%clk 0:01:39.5]} 27... Qa6 {[%clk
0:01:54.5]} 28. Ra1 {[%clk 0:01:32.9]} 28... Ng4 {[%clk 0:01:51.3]} 29. h3
{[%clk 0:01:28.7]} 29... Ne3 {[%clk 0:01:39.6]} 30. Bb2 {[%clk 0:01:24.1]} 30...
Qd6 {[%clk 0:01:36.3]} 31. Re1 {[%clk 0:01:15.4]} 31... Qxb4 {[%clk 0:01:33.5]}
32. Ba1 {[%clk 0:01:05.3]} 32... f4 {[%clk 0:01:25.6]} 33. d6 {[%clk 0:01:03.1]}
33... Qd4 {[%clk 0:01:14.6]} 34. Qa2+ {[%clk 0:00:58.8]} 34... Kh8 {[%clk
0:01:07.7]} 35. Qf7 {[%clk 0:00:56.5]} 35... Rd8 {[%clk 0:00:53]} 36. Ne4 {[%clk
0:00:18.8]} 36... Qxe4 {[%clk 0:00:45.2]} 37. Rxe3 {[%clk 0:00:17.3]} 37... Qb1+
{[%clk 0:00:34.5]} 38. Kh2 {[%clk 0:00:16.9]} 38... Qxa1 {[%clk 0:00:34.3]} 39.
Qxd7 {[%clk 0:00:16.3]} 39... fxe3 {[%clk 0:00:29.5]} 40. Qe6 {[%clk 0:00:14.3]}
40... Qe5+ {[%clk 0:00:28.3]} 41. Qxe5 {[%clk 0:00:12.4]} 41... Bxe5+ {[%clk
0:00:28.4]} 42. Kg1 {[%clk 0:00:12.3]} 0-1

[Event "*** Titled Tuesday Blitz"]
[Site "Chess.com"]
[Date "2020.10.27"]
[Round "11"]
[White "Mikasinski"]
[Black "MaxLeto"]
[Result "1-0"]
[WhiteElo "2493"]
[BlackElo "2352"]
[TimeControl "180+1"]
[EndTime "12:05:44 PDT"]
[Termination "Mikasinski won on time"]

1. e4 {[%clk 0:02:55.5]} 1... c5 {[%clk 0:02:53.1]} 2. Nf3 {[%clk 0:02:55.4]}
2... d6 {[%clk 0:02:52.9]} 3. d4 {[%clk 0:02:56.2]} 3... cxd4 {[%clk 0:02:53.8]}
4. Nxd4 {[%clk 0:02:57]} 4... Nf6 {[%clk 0:02:54.1]} 5. Nc3 {[%clk 0:02:57.5]}
5... a6 {[%clk 0:02:54.7]} 6. Be2 {[%clk 0:02:57.9]} 6... e6 {[%clk 0:02:53.9]}
7. f4 {[%clk 0:02:57.6]} 7... Be7 {[%clk 0:02:52]} 8. O-O {[%clk 0:02:57.3]}
8... O-O {[%clk 0:02:51.5]} 9. Kh1 {[%clk 0:02:57.5]} 9... Nc6 {[%clk
0:02:45.1]} 10. Be3 {[%clk 0:02:57.1]} 10... Qc7 {[%clk 0:02:44.4]} 11. a4
{[%clk 0:02:55.8]} 11... Re8 {[%clk 0:02:36.1]} 12. Qe1 {[%clk 0:02:52.6]} 12...
Nxd4 {[%clk 0:02:25]} 13. Bxd4 {[%clk 0:02:53.5]} 13... e5 {[%clk 0:02:25]} 14.
fxe5 {[%clk 0:02:50.5]} 14... dxe5 {[%clk 0:02:25.9]} 15. Qg3 {[%clk 0:02:50.9]}
15... Bd8 {[%clk 0:01:21.7]} 16. Be3 {[%clk 0:02:29.5]} 16... Be6 {[%clk
0:01:21]} 17. Rad1 {[%clk 0:02:25.8]} 17... Be7 {[%clk 0:01:06.2]} 18. Bd4
{[%clk 0:01:52.7]} 18... Nd7 {[%clk 0:01:02]} 19. Nd5 {[%clk 0:01:48.2]} 19...
Bxd5 {[%clk 0:00:59]} 20. exd5 {[%clk 0:01:48.2]} 20... Qxc2 {[%clk 0:00:53.5]}
21. Bd3 {[%clk 0:01:48.3]} 21... Qxa4 {[%clk 0:00:51.8]} 22. Bc3 {[%clk
0:01:42]} 22... Qh4 {[%clk 0:00:30.5]} 23. Qf3 {[%clk 0:01:35.4]} 23... Bf6
{[%clk 0:00:16.3]} 24. Qf5 {[%clk 0:01:33.9]} 24... Nf8 {[%clk 0:00:09.9]} 25.
g3 {[%clk 0:01:32]} 25... Qg5 {[%clk 0:00:09.9]} 26. Qe4 {[%clk 0:01:30.4]}
26... Rad8 {[%clk 0:00:08.9]} 27. Rf5 {[%clk 0:01:29.4]} 27... Qh6 {[%clk
0:00:08.5]} 28. Rdf1 {[%clk 0:01:30]} 28... Ng6 {[%clk 0:00:07.9]} 29. h4 {[%clk
0:01:27.5]} 29... Ne7 {[%clk 0:00:07.1]} 30. R5f2 {[%clk 0:01:16.4]} 30... Nxd5
{[%clk 0:00:07.2]} 31. Bd2 {[%clk 0:01:16.7]} 31... Qg6 {[%clk 0:00:06.7]} 32.
Qc4 {[%clk 0:01:06]} 32... e4 {[%clk 0:00:06.8]} 33. Bb1 {[%clk 0:01:06.1]}
33... Qxg3 {[%clk 0:00:07.1]} 34. Rg2 {[%clk 0:00:57.2]} 34... Qxh4+ {[%clk
0:00:07.2]} 35. Rh2 {[%clk 0:00:57.7]} 35... Qg3 {[%clk 0:00:07.4]} 36. Bxe4
{[%clk 0:00:55]} 36... g6 {[%clk 0:00:05.9]} 37. Bxd5 {[%clk 0:00:53.6]} 37...
Re7 {[%clk 0:00:03.6]} 38. Rxf6 {[%clk 0:00:51.4]} 38... Qe5 {[%clk 0:00:02.5]}
39. Bxf7+ {[%clk 0:00:48.4]} 39... Kg7 {[%clk 0:00:02.9]} 40. Rf1 {[%clk
0:00:36.6]} 40... Qe4+ {[%clk 0:00:02]} 41. Qxe4 {[%clk 0:00:36.5]} 41... Rxe4
{[%clk 0:00:02.9]} 42. Bc3+ {[%clk 0:00:37.1]} 42... Kf8 {[%clk 0:00:02.8]} 43.
Bd5+ {[%clk 0:00:36.6]} 1-0

[Event "*** Titled Tuesday Blitz"]
[Site "Chess.com"]
[Date "2020.10.27"]
[Round "11"]
[White "Michaelson_11"]
[Black "HanSchut"]
[Result "1-0"]
[WhiteElo "2144"]
[BlackElo "2214"]
[TimeControl "180+1"]
[EndTime "12:05:44 PDT"]
[Termination "Michaelson_11 won by resignation"]

1. e4 {[%clk 0:03:00.9]} 1... c5 {[%clk 0:02:55.1]} 2. Nf3 {[%clk 0:03:00.8]}
2... d6 {[%clk 0:02:55.6]} 3. d4 {[%clk 0:03:00.9]} 3... cxd4 {[%clk 0:02:56.5]}
4. Nxd4 {[%clk 0:03:01.8]} 4... Nf6 {[%clk 0:02:57.1]} 5. Nc3 {[%clk 0:03:01.8]}
5... a6 {[%clk 0:02:57.7]} 6. Bd3 {[%clk 0:02:58.2]} 6... g6 {[%clk 0:02:56.9]}
7. O-O {[%clk 0:02:54.2]} 7... Bg7 {[%clk 0:02:57.4]} 8. b3 {[%clk 0:02:41.3]}
8... O-O {[%clk 0:02:50.8]} 9. Bb2 {[%clk 0:02:40.6]} 9... Bd7 {[%clk 0:02:45]}
10. Nce2 {[%clk 0:02:38.6]} 10... Nc6 {[%clk 0:02:43.5]} 11. f4 {[%clk
0:02:37.9]} 11... Qb6 {[%clk 0:02:32.5]} 12. Kh1 {[%clk 0:02:32.3]} 12... Ng4
{[%clk 0:02:31.9]} 13. Nxc6 {[%clk 0:02:07.7]} 13... Bxb2 {[%clk 0:02:24.2]} 14.
Nxe7+ {[%clk 0:02:02.4]} 14... Kh8 {[%clk 0:02:23.6]} 15. Rb1 {[%clk 0:02:02.3]}
15... Bg7 {[%clk 0:02:01.2]} 16. Qe1 {[%clk 0:01:46.3]} 16... Rfe8 {[%clk
0:01:31.1]} 17. Nd5 {[%clk 0:01:43.1]} 17... Qd8 {[%clk 0:01:27.5]} 18. Qg3
{[%clk 0:01:39.4]} 18... Nf6 {[%clk 0:01:19.5]} 19. Nec3 {[%clk 0:01:19.4]}
19... Rc8 {[%clk 0:00:55.8]} 20. Rbe1 {[%clk 0:01:01]} 20... Be6 {[%clk
0:00:37.4]} 21. Nxf6 {[%clk 0:00:38.5]} 21... Bxf6 {[%clk 0:00:37.3]} 22. Nd5
{[%clk 0:00:30.8]} 22... Bh4 {[%clk 0:00:27.4]} 23. Qe3 {[%clk 0:00:24.7]} 23...
Bxd5 {[%clk 0:00:23.4]} 24. Qd4+ {[%clk 0:00:24.8]} 24... Bf6 {[%clk 0:00:22.7]}
25. Qxd5 {[%clk 0:00:23.9]} 25... Bg7 {[%clk 0:00:22.1]} 26. Qxf7 {[%clk
0:00:23.3]} 26... Rf8 {[%clk 0:00:20.3]} 27. Qxb7 {[%clk 0:00:23]} 27... d5
{[%clk 0:00:17.7]} 28. exd5 {[%clk 0:00:20.8]} 28... Qh4 {[%clk 0:00:16.5]} 29.
g3 {[%clk 0:00:16.5]} 29... Qh3 {[%clk 0:00:14.2]} 30. Re7 {[%clk 0:00:14.9]}
30... Bf6 {[%clk 0:00:13.6]} 31. Rf7 {[%clk 0:00:12.7]} 31... Rxf7 {[%clk
0:00:08]} 32. Qxf7 {[%clk 0:00:13.6]} 32... Bg7 {[%clk 0:00:06.5]} 33. Qe6
{[%clk 0:00:11.3]} 33... Rf8 {[%clk 0:00:05.5]} 34. Qxh3 {[%clk 0:00:10.4]} 1-0

[Event "*** Titled Tuesday Blitz"]
[Site "Chess.com"]
[Date "2020.10.27"]
[Round "11"]
[White "Firouzja2003"]
[Black "Sychev_Klementy"]
[Result "1-0"]
[WhiteElo "3082"]
[BlackElo "2894"]
[TimeControl "180+1"]
[EndTime "12:05:48 PDT"]
[Termination "Firouzja2003 won on time"]

1. e4 {[%clk 0:03:00.9]} 1... e5 {[%clk 0:02:59.5]} 2. Nf3 {[%clk 0:03:01.1]}
2... Nc6 {[%clk 0:02:59.9]} 3. Bb5 {[%clk 0:03:01.3]} 3... a6 {[%clk 0:02:59.7]}
4. Ba4 {[%clk 0:03:01.7]} 4... b5 {[%clk 0:02:56.8]} 5. Bb3 {[%clk 0:03:01.6]}
5... Na5 {[%clk 0:02:57.5]} 6. d4 {[%clk 0:02:48.5]} 6... exd4 {[%clk
0:02:57.1]} 7. O-O {[%clk 0:02:42.9]} 7... d6 {[%clk 0:02:54.7]} 8. Qxd4 {[%clk
0:02:21.9]} 8... Bb7 {[%clk 0:02:54.2]} 9. Bg5 {[%clk 0:01:59.8]} 9... Nf6
{[%clk 0:02:15.8]} 10. Bxf6 {[%clk 0:01:55.2]} 10... Nxb3 {[%clk 0:02:09.2]} 11.
axb3 {[%clk 0:01:46.8]} 11... Qxf6 {[%clk 0:02:08.2]} 12. Qxf6 {[%clk
0:01:46.8]} 12... gxf6 {[%clk 0:02:08.3]} 13. Nc3 {[%clk 0:01:47.5]} 13... O-O-O
{[%clk 0:01:58.2]} 14. Nd4 {[%clk 0:01:42.8]} 14... h5 {[%clk 0:01:32.9]} 15.
Rfd1 {[%clk 0:01:37.8]} 15... h4 {[%clk 0:01:32.5]} 16. h3 {[%clk 0:01:28.4]}
16... Rh5 {[%clk 0:01:31.7]} 17. Nf5 {[%clk 0:01:09.6]} 17... d5 {[%clk
0:01:17.8]} 18. Ne2 {[%clk 0:00:35.3]} 18... dxe4 {[%clk 0:01:16.7]} 19. Rxd8+
{[%clk 0:00:35.3]} 19... Kxd8 {[%clk 0:01:16.9]} 20. Rd1+ {[%clk 0:00:35.4]}
20... Ke8 {[%clk 0:01:10]} 21. Ne3 {[%clk 0:00:34.7]} 21... Bd6 {[%clk
0:01:06.2]} 22. Nd4 {[%clk 0:00:29.4]} 22... f5 {[%clk 0:01:04.3]} 23. Ndxf5
{[%clk 0:00:28.3]} 23... Be5 {[%clk 0:01:02.4]} 24. c3 {[%clk 0:00:27.3]} 24...
a5 {[%clk 0:00:11.9]} 25. Ra1 {[%clk 0:00:17.2]} 25... Bc8 {[%clk 0:00:11.2]}
26. Nd4 {[%clk 0:00:17.6]} 26... b4 {[%clk 0:00:11.7]} 27. Nc4 {[%clk
0:00:08.8]} 27... bxc3 {[%clk 0:00:11.2]} 28. bxc3 {[%clk 0:00:06.4]} 28... Bxd4
{[%clk 0:00:07.7]} 29. cxd4 {[%clk 0:00:07.3]} 29... Rd5 {[%clk 0:00:07.6]} 30.
Rxa5 {[%clk 0:00:06.9]} 30... Rxd4 {[%clk 0:00:08]} 31. Rh5 {[%clk 0:00:06.8]}
31... Rd3 {[%clk 0:00:06.3]} 32. Rh8+ {[%clk 0:00:06.5]} 32... Kd7 {[%clk
0:00:05.3]} 33. Ne5+ {[%clk 0:00:06.7]} 1-0

[Event "*** Titled Tuesday Blitz"]
[Site "Chess.com"]
[Date "2020.10.27"]
[Round "11"]
[White "MIJuanReyesRosa"]
[Black "CraiggoryC"]
[Result "0-1"]
[WhiteElo "2071"]
[BlackElo "2228"]
[TimeControl "180+1"]
[EndTime "12:05:49 PDT"]
[Termination "CraiggoryC won by checkmate"]

1. d4 {[%clk 0:03:00.9]} 1... Nf6 {[%clk 0:02:59.2]} 2. Nf3 {[%clk 0:03:00.3]}
2... g6 {[%clk 0:02:57.5]} 3. c4 {[%clk 0:03:00.3]} 3... Bg7 {[%clk 0:02:57]} 4.
Nc3 {[%clk 0:03:00.8]} 4... O-O {[%clk 0:02:56.7]} 5. e4 {[%clk 0:03:01.3]} 5...
c5 {[%clk 0:02:57.2]} 6. Be2 {[%clk 0:03:00]} 6... d6 {[%clk 0:02:55.7]} 7. O-O
{[%clk 0:02:58.2]} 7... Nc6 {[%clk 0:02:55.5]} 8. Re1 {[%clk 0:02:45.2]} 8...
cxd4 {[%clk 0:02:46.8]} 9. Nxd4 {[%clk 0:02:44.2]} 9... Nxe4 {[%clk 0:02:45]}
10. Nxc6 {[%clk 0:02:25.6]} 10... Nxc3 {[%clk 0:02:43]} 11. Nxd8 {[%clk
0:02:24.2]} 11... Nxd1 {[%clk 0:02:41.6]} 12. Nxf7 {[%clk 0:02:16.2]} 12... Nxb2
{[%clk 0:02:27.7]} 13. Nh6+ {[%clk 0:01:52.7]} 13... Kh8 {[%clk 0:02:25.6]} 14.
Rb1 {[%clk 0:01:40]} 14... Na4 {[%clk 0:02:17.2]} 15. Bg5 {[%clk 0:01:32.3]}
15... Nc3 {[%clk 0:01:54.3]} 16. Rbc1 {[%clk 0:01:05.3]} 16... Nxa2 {[%clk
0:01:26.9]} 17. Rc2 {[%clk 0:01:05.4]} 17... Nb4 {[%clk 0:01:26.4]} 18. Rd2
{[%clk 0:01:04.4]} 18... Bc3 {[%clk 0:01:16.1]} 19. Bxe7 {[%clk 0:01:03.7]}
19... Bxd2 {[%clk 0:01:11.7]} 20. Rd1 {[%clk 0:01:01.7]} 20... Bxh6 {[%clk
0:01:10]} 21. Bxf8 {[%clk 0:01:00.5]} 21... Bxf8 {[%clk 0:01:10.1]} 22. Rf1
{[%clk 0:00:09.6]} 22... Bf5 {[%clk 0:01:00.1]} 23. g3 {[%clk 0:00:08.7]} 23...
Be4 {[%clk 0:00:39]} 24. Bf3 {[%clk 0:00:08.8]} 24... Bxf3 {[%clk 0:00:38.5]}
25. Rb1 {[%clk 0:00:09.4]} 25... Re8 {[%clk 0:00:32.8]} 26. h4 {[%clk
0:00:10.2]} 26... Kg7 {[%clk 0:00:25.8]} 27. c5 {[%clk 0:00:10.3]} 27... dxc5
{[%clk 0:00:25.2]} 28. h5 {[%clk 0:00:11.2]} 28... Bxh5 {[%clk 0:00:24.5]} 29.
Kh2 {[%clk 0:00:10.8]} 29... Bf3 {[%clk 0:00:24]} 30. Kh3 {[%clk 0:00:10.2]}
30... Bd6 {[%clk 0:00:22.2]} 31. g4 {[%clk 0:00:09.7]} 31... Re2 {[%clk
0:00:20.6]} 32. Rf1 {[%clk 0:00:08.3]} 32... Bc6 {[%clk 0:00:19.1]} 33. g5
{[%clk 0:00:07.4]} 33... Bd7+ {[%clk 0:00:18]} 34. Kh4 {[%clk 0:00:06.7]} 34...
Nd5 {[%clk 0:00:16.8]} 35. f4 {[%clk 0:00:02.7]} 35... Nxf4 {[%clk 0:00:16.5]}
36. Kg3 {[%clk 0:00:03.4]} 36... Nd3+ {[%clk 0:00:15.4]} 37. Kh4 {[%clk
0:00:01.6]} 37... Rh2# {[%clk 0:00:14.8]} 0-1